bitfinex/quotes_ETHUSD_20220213
["timestamp","ask_amount","ask_price","bid_price","bid_amount"]
[1644796135357,2.63654532,2888.5,2888.2,0.3]
[1644796135560,1.77056532,2888.5,2888.2,0.3]
[1644796135761,0.90462532,2888.5,2888.2,0.3]
[1644796135960,0.01031542,2888.6,2888.3,1.66325456]
[1644796136161,0.01031542,2888.6,2888.4,0.79751165]
[1644796136361,0.01031542,2888.6,2888.4,1.59651165]
[1644796136568,0.01031542,2888.6,2888.5,0.79751165]
[1644796136760,0.01031542,2888.6,2888.5,1.09751165]
[1644796137405,0.01031542,2888.6,2888.5,1.59651165]
[1644796137604,0.01031542,2888.6,2888.5,2.46201165]
[1644796138906,0.01031542,2888.6,2888.5,2.63501165]
[1644796139111,0.01031542,2888.6,2888.5,2.58501165]
[1644796139710,0.01031542,2888.6,2888.5,3.58501165]
[1644796140214,0.01031542,2888.6,2888.5,12.29840175]
[1644796140414,0.001,2890.1,2888.9,0.86522]
[1644796140612,1.5797582,2890.1,2889.2,0.89561206]
[1644796140871,0.66195931,2890.0,2889.3,4.76625899]
[1644796141060,1.19147986,2889.6,2889.4,0.1729]
[1644796141262,1.19147986,2889.6,2889.5,0.499]
[1644796141462,1.19147986,2889.6,2889.5,0.799]
[1644796141764,1.85238058,2889.6,2889.5,0.799]
[1644796142561,1.19147986,2889.6,2889.5,0.799]
[1644796142763,1.85239663,2889.6,2889.5,0.799]
[1644796143463,1.19147986,2889.6,2889.5,0.799]
[1644796143664,1.85257493,2889.6,2889.5,0.799]
[1644796143862,1.85257493,2889.6,2889.5,0.3]
[1644796145709,1.19147986,2889.6,2889.5,0.3]
[1644796145909,0.1729,2890.0,2889.6,0.86535]
[1644796145910,0.001,2889.8,2889.6,0.86535]
[1644796146108,0.1729,2890.0,2889.6,1.7306874]
[1644796146109,0.66172173,2889.9,2889.6,1.7306874]
[1644796146310,0.01138706,2889.7,2889.6,1.1653374]
[1644796147209,0.001,2889.7,2889.6,2.0306374]
[1644796147611,0.001,2889.7,2889.6,1.1653]
[1644796147812,0.001,2889.7,2889.6,0.3]
[1644796148114,0.66339204,2889.7,2889.6,0.3]
[1644796148363,0.66339204,2889.7,2889.4,0.8655076]
[1644796148567,0.66339204,2889.7,2888.8,0.499]
[1644796148768,20.3,2889.6,2888.9,0.7986981]
[1644796148966,20.3,2889.6,2888.7,0.01139139]
[1644796148967,1.13264263,2888.8,2888.7,0.01139139]
[1644796149472,1.13264263,2888.8,2888.7,0.80204848]
[1644796149664,1.13264263,2888.8,2888.7,1.09065709]
[1644796151168,8.2906,2888.7,2888.6,0.01138947]
[1644796151368,14.3421,2888.7,2888.6,0.01138947]
[1644796151667,14.1692,2888.7,2888.6,0.01138947]
[1644796151869,14.1692,2888.7,2888.3,0.00286279]
[1644796152115,0.1731,2888.6,2888.5,0.01138963]
[1644796153112,14.1692,2888.7,2888.4,1.7313556]
[1644796153512,14.1692,2888.7,2888.4,1.74274539]
[1644796154115,14.1692,2888.7,2888.5,1.16564]
[1644796154315,14.1692,2888.7,2888.5,2.0313052]
[1644796154814,14.1692,2888.7,2888.5,1.1656652]
[1644796155614,14.1692,2888.7,2888.5,0.07016424]
[1644796155873,14.1692,2888.7,2888.5,0.08155395]
[1644796156664,14.1692,2888.7,2888.5,0.07016424]
[1644796157066,14.1692,2888.7,2888.5,0.08155395]
[1644796157867,14.1692,2888.7,2888.5,0.07016424]
[1644796158066,14.1692,2888.7,2888.5,0.37016424]
[1644796158266,14.1692,2888.7,2888.5,0.38155395]
[1644796158667,14.1692,2888.7,2888.5,0.31138971]
[1644796158868,15.03506,2888.7,2888.5,0.01138971]
[1644796159068,15.03506,2888.7,2888.1,0.00286279]
[1644796159269,15.03506,2888.7,2888.1,6.279e-05]
[1644796159473,40.33506,2888.7,2888.5,8.971e-05]
[1644796159719,0.1731,2888.6,2888.5,8.971e-05]
[1644796160217,21.51822321,2888.6,2888.0,3.85301839]
[1644796160417,20.3,2888.5,2888.0,3.8074527]
[1644796160618,0.1731,2888.4,2888.0,3.8074527]
[1644796160817,0.1731,2888.4,2887.6,2.2318736]
[1644796160818,1.73196,2888.3,2887.6,1.7318736]
[1644796161019,25.4731,2888.2,2887.2,2.596739]
[1644796161218,1.17065427,2887.4,2887.2,2.596739]
[1644796161418,37.65359,2888.2,2887.2,2.596739]
[1644796161616,17.35359,2888.2,2887.2,2.596739]
[1644796162017,17.18049,2888.2,2887.2,1.732039]
[1644796162317,17.18049,2888.2,2887.3,0.86602]
[1644796162524,1.03392315,2887.7,2887.3,0.86602]
[1644796163365,1.03392315,2887.7,2887.5,0.8660321]
[1644796163560,1.03392315,2887.7,2887.6,0.86594]
[1644796164761,1.03392315,2887.7,2887.5,1.17741834]
[1644796165167,1.03392315,2887.7,2887.5,1.1660321]
[1644796165364,1.03392315,2887.7,2887.5,1.17741842]
[1644796166365,1.03392315,2887.7,2887.5,1.1660321]
[1644796166566,1.03392315,2887.7,2887.5,1.17741842]
[1644796167610,1.03392315,2887.7,2887.5,1.1660321]
[1644796167815,1.03392315,2887.7,2887.5,1.17741842]
[1644796168911,1.03392315,2887.7,2887.5,1.1660321]
[1644796169113,1.03392315,2887.7,2887.5,1.17741842]
[1644796170013,1.03392315,2887.7,2887.5,1.1660321]
[1644796170214,1.03392315,2887.7,2887.5,1.17741842]
[1644796170714,1.03392315,2887.7,2887.5,2.04337842]
[1644796170971,17.35348,2888.2,2887.5,2.04337842]
[1644796171163,0.65994809,2888.1,2887.6,0.80198505]
[1644796171363,0.65994809,2888.1,2887.5,0.3]
[1644796171668,16.3144,2888.2,2887.6,0.80188476]
[1644796171867,16.3144,2888.2,2887.6,1.10188476]
[1644796172067,17.27749855,2888.2,2887.7,0.80188476]
[1644796172366,17.27749855,2888.2,2887.7,1.96779476]
[1644796172566,17.27749855,2888.2,2887.8,0.01138576]
[1644796172972,0.65983928,2888.1,2887.8,0.01138576]
[1644796173467,17.27749855,2888.2,2887.8,0.87724116]
[1644796173665,10.90239855,2888.2,2887.8,1.7317354]
[1644796173866,10.90239855,2888.2,2887.9,0.3]
[1644796174066,0.65910416,2888.1,2887.9,0.3]
[1644796174715,10.90239855,2888.2,2887.9,1.16583]
[1644796174716,9.9393,2888.2,2887.9,1.16583]
[1644796174918,9.9393,2888.2,2887.9,2.66483]
[1644796175117,9.9393,2888.2,2887.9,2.67621568]
[1644796175316,9.9393,2888.2,2887.9,1.67621568]
[1644796175920,9.9393,2888.2,2887.9,1.66483]
[1644796176118,10.78669777,2888.2,2887.9,1.66483]
[1644796176318,10.78669777,2888.2,2887.9,1.6762156]
[1644796177122,9.9393,2888.2,2887.9,1.66483]
[1644796177523,9.9393,2888.2,2887.9,1.6762156]
[1644796178371,9.9393,2888.2,2887.9,1.66483]
[1644796178566,9.9393,2888.2,2887.9,1.6762156]
[1644796178967,8.36551136,2888.2,2888.0,0.8029583]
[1644796179166,8.36551136,2888.2,2888.1,0.86579]
[1644796179573,8.36551136,2888.2,2888.1,1.16579]
[1644796180677,6.0517,2888.7,2888.1,4.45826337]
[1644796180871,6.0517,2888.7,2888.2,1.64197247]
[1644796180872,0.1731,2888.7,2888.2,1.64197247]
[1644796181073,0.1731,2888.7,2888.3,1.27251927]
[1644796181273,0.1731,2888.7,2888.4,0.77351927]
[1644796181472,0.1731,2888.7,2888.5,0.499]
[1644796182914,0.1731,2888.7,2888.6,1.63849392]
[1644796183112,0.1731,2888.7,2888.6,2.13749392]
[1644796183316,0.1731,2888.7,2888.6,2.43749392]
[1644796183511,0.1731,2888.7,2888.6,2.61039392]
[1644796185211,0.1731,2888.7,2888.6,3.64354373]
[1644796185413,0.01138331,2888.8,2888.7,0.03300472]
[1644796185614,0.1729,2890.0,2888.7,5.14339775]
[1644796185901,0.68794206,2889.9,2889.1,3.49113706]
[1644796186181,1.01957519,2889.7,2889.2,1.57197392]
[1644796186382,1.01957519,2889.7,2889.3,0.77297392]
[1644796186582,1.01957519,2889.7,2889.4,0.499]
[1644796186781,1.01957519,2889.7,2889.4,0.799]
[1644796187182,0.01099808,2889.6,2889.4,0.799]
[1644796187582,0.01099808,2889.6,2889.4,1.66419]
[1644796188083,1.01957519,2889.7,2889.4,0.799]
[1644796188281,0.68736414,2889.6,2889.4,0.799]
[1644796188488,0.69836222,2889.6,2889.4,0.799]
[1644796188682,0.01099808,2889.6,2889.4,1.6644]
[1644796189283,0.14216475,2890.4,2889.4,1.6644]
[1644796189486,0.01099808,2889.6,2889.4,5.01201712]
[1644796189710,0.01099808,2889.6,2889.4,1.6644]
[1644796189910,0.01099808,2889.6,2889.5,2.59535]
[1644796190209,0.01099808,2889.6,2889.5,3.09435]
[1644796190411,1.15832049,2889.9,2889.5,4.8242175]
[1644796190612,1.15832049,2889.9,2889.5,0.499]
[1644796190813,0.01079983,2889.7,2889.5,0.499]
[1644796191711,0.86547,2889.8,2889.5,0.499]
[1644796191911,0.69822955,2889.7,2889.5,0.499]
[1644796192113,0.01079976,2889.7,2889.5,0.499]
[1644796192512,0.68720854,2889.6,2889.5,0.499]
[1644796193112,0.68720854,2889.6,2889.4,1.1654466]
[1644796193383,0.01079983,2889.7,2889.4,1.1654466]
[1644796193579,0.68721604,2889.6,2889.4,1.1654466]
[1644796194175,6.79197,2889.8,2889.4,1.1654466]
[1644796194376,0.01081326,2889.6,2889.4,1.1654466]
[1644796195179,6.79197,2889.8,2889.4,1.1654466]
[1644796195376,0.68342853,2889.7,2889.4,1.1654466]
[1644796195579,0.01081326,2889.6,2889.4,1.1654466]
[1644796195978,0.01081326,2889.6,2889.5,0.86534]
[1644796196376,5.9265,2889.8,2889.5,0.86534]
[1644796196777,0.01081319,2889.7,2889.5,0.86534]
[1644796197217,0.01081319,2889.7,2889.5,2.5959694]
[1644796197618,5.9265,2889.8,2889.5,2.5959694]
[1644796198019,0.01081223,2889.7,2889.5,2.5959694]
[1644796198825,5.9265,2889.8,2889.5,2.5959694]
[1644796199021,5.9265,2889.8,2889.5,2.8959694]
[1644796199221,0.01081223,2889.7,2889.6,0.86528]
[1644796199620,0.01081223,2889.7,2889.6,1.16528]
[1644796200020,5.9265,2889.8,2889.6,1.16528]
[1644796200424,5.93731216,2889.8,2889.6,1.16528]
[1644796200624,4.36436704,2889.8,2889.7,0.499]
[1644796200862,4.36436704,2889.8,2889.7,0.799]
[1644796200863,0.01081216,2889.8,2889.7,0.799]
[1644796201469,0.00396478,2890.3,2889.7,0.799]
[1644796201470,1.13973472,2890.2,2889.8,0.86515]
[1644796201665,0.01081207,2889.9,2889.8,0.86515]
[1644796201863,0.01081207,2889.9,2889.8,0.3]
[1644796202263,0.01081207,2889.9,2889.0,0.499]
[1644796202464,0.17686478,2890.1,2889.1,0.74511611]
[1644796202465,1.42126478,2890.1,2889.1,0.74511611]
[1644796202668,0.71140304,2890.0,2889.3,0.86539]
[1644796202868,0.01081193,2890.0,2889.3,2.0308264]
[1644796203066,0.01081193,2890.0,2889.3,1.3383364]
[1644796203464,0.01081193,2890.0,2889.3,1.6383364]
[1644796203666,7.15396478,2890.1,2889.5,0.86532]
[1644796203970,0.01081221,2889.8,2889.5,1.16532]
[1644796204165,0.01081221,2889.8,2889.5,0.3]
[1644796204365,0.01081221,2889.8,2889.5,0.8652868]
[1644796205014,7.15396478,2890.1,2889.5,0.8652868]
[1644796205217,0.01081218,2889.8,2889.6,1.16528]
[1644796205416,0.01081218,2889.8,2889.6,2.0305664]
[1644796206215,7.15396478,2890.1,2889.6,2.0305664]
[1644796206414,0.01081211,2889.8,2889.7,0.86529]
[1644796207314,6.98106478,2890.1,2889.7,0.86529]
[1644796207520,0.01081204,2889.9,2889.7,0.86529]
[1644796208565,6.9771,2890.1,2889.7,0.86529]
[1644796208762,0.01081198,2889.9,2889.7,0.86529]
[1644796209769,28.5096396,2889.8,2888.7,0.1729]
[1644796209967,20.3,2889.6,2888.5,0.1729]
[1644796210166,20.3,2889.6,2888.6,1.6039433]
[1644796210167,0.1729,2889.5,2888.6,1.6039433]
[1644796210465,0.1729,2889.5,2888.7,0.7383133]
[1644796210872,0.1729,2889.5,2888.5,1.7311357]
[1644796211064,1.10727925,2889.0,2888.6,1.03834909]
[1644796211268,1.10727925,2889.0,2888.7,0.73834909]
[1644796212317,1.11809254,2889.0,2888.7,0.73834909]
[1644796213315,1.10727925,2889.0,2888.7,0.73834909]
[1644796213517,1.11809254,2889.0,2888.7,0.73834909]
[1644796214520,1.10727925,2889.0,2888.7,0.73834909]
[1644796214716,1.11809254,2889.0,2888.7,0.73834909]
[1644796215116,0.01081329,2889.0,2888.7,1.60393909]
[1644796215316,0.01081329,2889.0,2888.8,0.73834909]
[1644796215716,1.2303,2889.3,2888.8,1.03834909]
[1644796215963,0.0108133,2889.0,2888.9,0.73834909]
[1644796216363,0.0108133,2889.0,2888.9,1.60382179]
[1644796216566,0.0108133,2889.0,2888.9,2.46931179]
[1644796216966,0.93820804,2889.2,2888.9,0.73834909]
[1644796217171,0.01081323,2889.1,2888.9,0.73834909]
[1644796217466,0.01081323,2889.1,2889.0,0.74145145]
[1644796217665,0.01081323,2889.1,2888.4,0.010816]
[1644796217666,0.01081323,2889.1,2888.4,0.310816]
[1644796217866,0.01081323,2889.1,2888.5,0.91412905]
[1644796218068,7.23267804,2889.2,2888.6,0.74122905]
[1644796218466,0.01081351,2888.9,2888.6,0.74122905]
[1644796219067,0.01081351,2888.9,2888.7,1.731219]
[1644796219267,0.86563,2889.1,2888.8,1.04122905]
[1644796219468,0.86563,2889.1,2888.9,0.74195294]
[1644796220119,1.73128,2889.1,2888.9,0.74195294]
[1644796220519,0.72109796,2889.0,2888.8,0.3]
[1644796220719,0.72109796,2889.0,2888.6,1.16562]
[1644796221018,0.72109796,2889.0,2888.7,0.74183567]
[1644796221417,0.72109796,2889.0,2888.7,1.60744387]
[1644796221619,6.36710804,2889.2,2889.1,1.38979303]
[1644796221822,7.27049316,2889.9,2889.1,2.1316287]
[1644796221823,8.7033,2889.6,2889.1,2.1316287]
[1644796222119,0.72495629,2889.5,2889.2,0.74183567]
[1644796222920,0.72495629,2889.5,2889.2,1.60726567]
[1644796223118,0.72495629,2889.5,2889.3,0.74183567]
[1644796223367,0.72495629,2889.5,2889.4,0.74183567]
[1644796223766,1.05978323,2889.7,2889.4,0.74183567]
[1644796223767,0.72495629,2889.6,2889.4,0.74183567]
[1644796223967,0.72495629,2889.6,2889.5,0.74183567]
[1644796224370,0.73174811,2889.6,2889.5,1.04183567]
[1644796224565,0.73174811,2889.6,2889.5,0.94183567]
[1644796225367,0.72495629,2889.6,2889.5,0.94183567]
[1644796227424,8.4,2889.5,2888.8,1.73096]
[1644796227634,20.3,2889.1,2888.5,0.499]
[1644796227922,20.96172999,2888.8,2888.1,0.0028632]
[1644796228131,20.3,2888.8,2888.7,8.537e-05]
[1644796228322,24.04350389,2888.8,2888.7,8.537e-05]
[1644796228522,24.16109673,2888.8,2888.7,8.537e-05]
[1644796228722,25.46230838,2888.8,2888.7,8.537e-05]
[1644796228923,24.16109673,2888.8,2888.1,0.0028632]
[1644796229124,0.962718,2888.3,2888.1,0.0028632]
[1644796230522,8.4,2888.1,2888.0,0.00288233]
[1644796230722,12.1963658,2888.1,2888.0,0.00288233]
[1644796230968,12.1963658,2888.1,2887.6,0.00288233]
[1644796231570,12.1963658,2888.1,2887.7,0.004588]
[1644796232470,12.1963658,2888.1,2887.6,0.00288233]
[1644796232871,12.1963658,2888.1,2887.8,0.01138085]
[1644796233671,12.1963658,2888.1,2887.6,0.00288233]
[1644796233871,1.73198,2888.0,2887.6,0.00288233]
[1644796234074,1.1011866,2887.8,2887.6,0.00288233]
[1644796234721,1.1011866,2887.8,2887.3,0.00288233]
[1644796234918,3.44755892,2887.7,2887.4,0.1731]
[1644796235121,1.9671666,2887.8,2887.4,0.1731]
[1644796236118,1.9671666,2887.8,2887.5,0.86594]
[1644796236317,1.9671666,2887.8,2887.5,0.86882233]
[1644796236618,1.9671666,2887.8,2887.5,1.18019868]
[1644796236820,1.1011866,2887.8,2887.5,1.18019868]
[1644796237417,1.1011866,2887.8,2887.5,1.16882233]
[1644796237617,1.1011866,2887.8,2887.5,1.1801986]
[1644796238220,1.9671566,2887.8,2887.5,1.1801986]
[1644796238474,1.1011866,2887.8,2887.5,1.16882233]
[1644796238866,1.1011866,2887.8,2887.5,1.1801986]
[1644796239470,1.1011866,2887.8,2887.5,0.8801986]
[1644796239669,1.1011866,2887.8,2887.5,0.86882233]
[1644796240070,1.1011866,2887.8,2887.5,0.8801986]
[1644796240870,1.1011866,2887.8,2887.5,1.1801986]
[1644796241070,1.1011866,2887.8,2887.5,1.16882233]
[1644796241272,1.1011866,2887.8,2887.5,1.1801986]
[1644796241971,1.9671766,2887.8,2887.5,1.1802086]
[1644796242212,1.9671766,2887.8,2887.5,1.16883233]
[1644796242414,1.9671766,2887.8,2887.5,0.3142586]
[1644796243411,1.9671766,2887.8,2887.5,0.30288233]
[1644796243612,1.9671766,2887.8,2887.5,0.3142586]
[1644796244312,1.9671766,2887.8,2887.5,1.1801986]
[1644796244517,5.37614813,2887.8,2887.5,1.16882233]
[1644796244814,1.9671766,2887.8,2887.5,1.1801986]
[1644796245013,2.8331666,2887.8,2887.5,1.1801986]
[1644796245412,6.25956846,2887.8,2887.5,1.1801986]
[1644796245718,5.39357846,2887.8,2887.5,1.16882233]
[1644796245968,5.39357846,2887.8,2887.5,1.1801986]
[1644796246368,1.9671766,2887.8,2887.5,1.1801986]
[1644796246967,2.8331666,2887.8,2887.5,1.16882233]
[1644796247168,2.8331666,2887.8,2887.5,1.1801986]
[1644796248174,2.8331666,2887.8,2887.5,1.16882233]
[1644796248571,2.8331666,2887.8,2887.5,1.1801986]
[1644796249370,2.8331666,2887.8,2887.5,1.06882233]
[1644796249618,2.8331666,2887.8,2887.5,1.0801986]
[1644796250218,2.8331666,2887.8,2887.5,0.0142586]
[1644796250616,2.8331666,2887.8,2887.5,0.00288233]
[1644796250819,2.8331666,2887.8,2887.5,0.0142586]
[1644796251217,2.8331666,2887.8,2887.5,1.1802286]
[1644796251819,2.8331666,2887.8,2887.5,1.16885233]
[1644796252017,2.8331666,2887.8,2887.5,1.1802286]
[1644796253019,2.8331666,2887.8,2887.5,1.16885233]
[1644796253219,2.8331666,2887.8,2887.5,1.1802286]
[1644796253475,1.9671766,2887.8,2887.5,1.1802286]
[1644796254269,1.9671766,2887.8,2887.5,1.16885233]
[1644796254469,1.9671766,2887.8,2887.5,1.1802286]
[1644796255270,2.8331566,2887.8,2887.5,1.1802286]
[1644796255470,1.2235,2887.9,2887.6,1.7317]
[1644796255673,9.0277,2888.1,2887.9,1.14384905]
[1644796255872,9.0277,2888.1,2888.0,0.86578]
[1644796256476,0.1731,2888.1,2888.0,0.86578]
[1644796260223,0.1731,2888.1,2887.9,1.94284905]
[1644796260422,5.6513,2888.2,2887.9,1.95422469]
[1644796260878,0.86584,2888.3,2887.9,1.95422469]
[1644796261082,0.1731,2888.6,2888.0,0.85180231]
[1644796261279,0.1731,2888.6,2888.1,0.499]
[1644796261486,0.1731,2888.6,2888.1,1.47761902]
[1644796261680,0.1731,2888.6,2888.2,0.01137524]
[1644796261882,0.1731,2888.6,2888.3,0.8656012]
[1644796262180,0.1731,2888.6,2888.4,0.499]
[1644796262380,0.1731,2888.6,2888.5,0.499]
[1644796262582,1.09347153,2888.9,2888.5,0.499]
[1644796262884,0.77841801,2888.8,2888.5,0.799]
[1644796263083,0.789791,2888.8,2888.5,0.799]
[1644796263381,0.77841801,2888.7,2888.5,0.799]
[1644796263781,1.64412801,2888.7,2888.5,0.799]
[1644796263986,1.73142,2888.7,2888.5,0.81037477]
[1644796264181,1.73142,2888.7,2888.5,1.67605477]
[1644796264381,0.77867286,2888.6,2888.5,1.67605477]
[1644796265019,1.73142,2888.7,2888.5,1.16568]
[1644796265219,0.01137311,2888.8,2888.5,1.16568]
[1644796266219,1.09347153,2888.9,2888.5,1.16568]
[1644796266421,0.79037853,2888.8,2888.5,1.17705469]
[1644796266624,0.77900518,2888.7,2888.5,1.17705469]
[1644796267420,0.77900518,2888.7,2888.5,1.16568]
[1644796267621,0.01137323,2888.8,2888.5,1.17705477]
[1644796267920,0.77913157,2888.7,2888.5,1.17705477]
[1644796268568,0.77913157,2888.7,2888.5,1.16568]
[1644796268770,0.01137323,2888.8,2888.5,1.67605477]
[1644796268970,0.01137323,2888.8,2888.7,0.86547]
[1644796269177,0.01137323,2888.8,2888.7,2.04325339]
[1644796269373,0.01137323,2888.8,2888.7,1.66447]
[1644796269571,0.01137323,2888.8,2888.7,2.34323044]
[1644796269770,5.4274,2889.3,2888.7,2.34323044]
[1644796269970,1.76704029,2889.2,2888.9,0.86544]
[1644796270273,0.77984153,2889.1,2888.9,1.66444]
[1644796271171,0.79121453,2889.1,2888.9,1.66444]
[1644796271372,0.011373,2889.1,2888.9,1.66444]
[1644796271779,0.011373,2889.1,2889.0,0.68005141]
[1644796272222,5.4274,2889.3,2889.0,1.17905141]
[1644796272426,5.4274,2889.3,2889.2,0.86534]
[1644796272622,6.20781665,2889.3,2889.2,1.36434]
[1644796273223,6.20697638,2889.3,2889.2,1.66434]
[1644796273722,6.20697673,2889.3,2889.2,1.66434]
[1644796273923,5.4274,2889.3,2889.2,1.66434]
[1644796275623,3.85386949,2889.3,2889.2,1.66434]
[1644796275868,1.17901791,2889.7,2889.4,0.86529]
[1644796276071,1.67346081,2889.6,2889.4,1.36429]
[1644796276270,0.86533,2889.6,2889.4,1.66429]
[1644796276769,1.17901791,2889.7,2889.4,1.66429]
[1644796276974,0.80749026,2889.6,2889.4,1.66429]
[1644796277370,0.0113722,2889.6,2889.4,1.66429]
[1644796278172,0.00396478,2890.0,2889.4,1.66429]
[1644796278372,0.00396478,2890.0,2889.5,1.7304724]
[1644796278672,0.0113722,2889.6,2889.5,1.7304724]
[1644796278872,0.0113722,2889.6,2889.5,2.2294724]
[1644796279477,0.00396478,2890.0,2889.5,2.2294724]
[1644796279722,0.01137212,2889.7,2889.5,2.2294724]
[1644796280624,0.00396478,2890.0,2889.5,2.2294724]
[1644796280823,0.01137205,2889.7,2889.5,2.2294724]
[1644796281625,0.01137205,2889.7,2889.5,3.2294724]
[1644796281825,0.04548136,2890.2,2889.5,3.2294724]
[1644796281826,0.00396478,2890.1,2889.5,3.2294724]
[1644796282029,0.86914478,2890.2,2889.6,1.48693235]
[1644796282223,0.01137205,2889.7,2889.6,1.16515]
[1644796282422,0.01137205,2889.7,2889.6,2.66415]
[1644796283023,0.86914478,2890.2,2889.8,0.86512]
[1644796283223,0.04944582,2890.2,2889.9,0.499]
[1644796283481,0.04548104,2890.2,2889.9,0.499]
[1644796283671,0.04548104,2890.2,2889.9,0.799]
[1644796283871,0.04548104,2890.2,2889.9,1.799]
[1644796284072,0.04548104,2890.2,2889.9,0.799]
[1644796284272,0.00396478,2890.3,2890.0,0.86511]
[1644796284475,0.01137133,2890.2,2890.1,0.499]
[1644796284871,0.01137133,2890.2,2890.1,0.799]
[1644796285480,0.00396478,2890.3,2890.2,0.86502]
[1644796285675,0.00396478,2890.3,2890.2,2.2290305]
[1644796285676,0.01137118,2890.3,2890.2,2.2290305]
[1644796286673,0.87099066,2890.4,2890.2,2.2290305]
[1644796286875,0.88236168,2890.4,2890.2,2.2290305]
[1644796287920,0.87099066,2890.4,2890.2,2.2290305]
[1644796288120,0.8823616,2890.4,2890.2,2.2290305]
[1644796289123,0.87099066,2890.4,2890.2,2.2290305]
[1644796289323,0.8823616,2890.4,2890.2,2.2290305]
[1644796289524,0.01137094,2890.4,2890.2,2.2290305]
[1644796290224,0.00396478,2890.6,2890.2,2.2290305]
[1644796290427,0.01137094,2890.4,2890.2,1.36402]
[1644796290726,0.01137094,2890.4,2890.2,0.399]
[1644796290972,0.01137094,2890.4,2890.1,0.3]
[1644796291175,0.01137094,2890.4,2889.2,1.90366]
[1644796291176,23.99679213,2890.4,2889.2,1.90366]
[1644796291373,1.16730195,2889.5,2889.3,0.499]
[1644796291673,1.16730195,2889.5,2889.3,3.999]
[1644796291873,1.16730195,2889.5,2889.3,3.5]
[1644796292076,4.49927112,2890.0,2889.3,3.5]
[1644796292272,8.8521,2889.9,2889.3,5.23067]
[1644796292477,0.86533,2889.6,2889.3,1.73067]
[1644796292872,0.86533,2889.6,2889.3,2.5959706]
[1644796293072,0.86533,2889.6,2889.3,2.8959706]
[1644796293474,0.86533,2889.6,2889.4,0.86541]
[1644796294074,0.87242086,2889.5,2889.4,0.86541]
[1644796294718,0.86533,2889.6,2889.4,0.86541]
[1644796297222,0.86533,2889.6,2889.3,0.3]
[1644796297422,4.38680424,2889.6,2889.1,0.86547]
[1644796297628,0.86549,2889.5,2889.1,0.3]
[1644796297822,1.73098,2889.5,2888.9,0.3]
[1644796298024,3.40603044,2889.4,2888.7,0.31137609]
[1644796298221,3.40603044,2889.4,2889.0,0.86552]
[1644796298222,1.2245,2889.4,2889.0,0.86552]
[1644796298476,0.86533,2889.6,2889.0,0.86552]
[1644796298673,2.37649666,2889.7,2889.1,0.8653627]
[1644796299073,2.37649666,2889.7,2889.2,0.3]
[1644796299274,2.20359666,2889.7,2889.2,0.3]
[1644796299874,0.86534,2889.6,2889.2,0.3]
[1644796300074,0.86534,2889.6,2889.3,0.86537]
[1644796300676,0.86534,2889.6,2889.3,1.16537]
[1644796300974,0.86534,2889.6,2889.1,1.73068]
[1644796301172,0.86534,2889.6,2889.2,0.86545]
[1644796301576,0.86534,2889.6,2889.1,2.03068]
[1644796301773,1.01649101,2889.2,2889.1,2.03068]
[1644796301975,1.01649101,2889.2,2888.8,0.499]
[1644796301976,0.1596745,2889.2,2888.8,0.499]
[1644796302221,0.1596745,2889.2,2888.8,0.799]
[1644796302421,0.1596745,2889.2,2888.9,0.86554]
[1644796303221,0.86553,2889.2,2888.9,0.86554]
[1644796303524,0.86553,2889.2,2888.8,0.3]
[1644796303525,4.33438496,2889.1,2888.8,0.3]
[1644796303723,0.8616341,2889.0,2888.7,0.01137503]
[1644796303922,3.59511534,2888.9,2888.7,0.01137503]
[1644796304123,0.8616341,2888.8,2888.7,0.01137503]
[1644796304423,5.4804918,2888.8,2888.7,0.01137503]
[1644796304623,5.4804918,2888.8,2888.1,0.6719]
[1644796304822,6.3503477,2888.8,2888.1,0.6719]
[1644796305024,6.3503477,2888.8,2888.6,0.01137453]
[1644796305222,0.86575,2888.7,2888.6,0.01137453]
[1644796305427,1.7315,2888.7,2888.6,0.01137453]
[1644796305870,1.7315,2888.7,2888.2,0.1729]
[1644796306070,1.7315,2888.7,2888.5,0.01137469]
[1644796307073,1.7315,2888.7,2888.4,0.86569]
[1644796307274,1.7315,2888.7,2888.5,0.01137477]
[1644796307473,4.27039347,2888.6,2888.5,0.01137477]
[1644796307675,4.27055041,2888.6,2888.5,0.01137477]
[1644796307880,4.27055041,2888.6,2888.5,7.477e-05]
[1644796307881,24.87055041,2888.6,2888.5,7.477e-05]
[1644796308083,25.04345041,2888.6,2888.5,7.477e-05]
[1644796308278,0.86602,2888.5,2887.8,0.1729]
[1644796308476,1.13704343,2888.3,2887.8,0.1729]
[1644796308677,4.52092806,2888.2,2887.8,0.1729]
[1644796308877,2.86900343,2888.3,2887.8,0.1729]
[1644796309082,0.85109425,2888.2,2887.8,0.1729]
[1644796309480,2.86900343,2888.3,2887.8,0.1729]
[1644796309720,0.84996504,2888.2,2887.8,0.1729]
[1644796309922,2.58196504,2888.2,2887.6,0.86596]
[1644796310121,1.732,2888.2,2887.9,1.14384905]
[1644796310920,1.732,2888.2,2887.9,1.15521971]
[1644796311119,24.01756586,2888.1,2887.9,1.15521971]
[1644796311320,3.5862676,2888.0,2887.9,1.15521971]
[1644796311921,3.5862676,2888.0,2887.9,1.14384905]
[1644796312521,3.8862676,2888.0,2887.9,1.14384905]
[1644796314269,10.671,2888.2,2887.9,1.14384905]
[1644796315571,10.971,2888.2,2887.9,1.14384905]
[1644796315769,10.971,2888.2,2887.9,1.15521971]
[1644796316571,10.971,2888.2,2887.9,1.14384905]
[1644796316972,10.971,2888.2,2887.9,1.15521971]
[1644796317824,10.671,2888.2,2887.9,1.14384905]
[1644796318221,10.671,2888.2,2887.9,1.15521971]
[1644796318222,10.971,2888.2,2887.9,1.15521971]
[1644796319022,10.971,2888.2,2887.9,1.14384905]
[1644796319023,10.671,2888.2,2887.9,1.14384905]
[1644796319222,9.80502,2888.2,2887.9,1.45521971]
[1644796319625,8.939,2888.2,2887.9,1.45521971]
[1644796319823,1.2357,2888.5,2888.0,0.499]
[1644796320021,9.7802,2888.5,2888.0,1.3647502]
[1644796320223,9.7802,2888.5,2888.1,0.3]
[1644796320421,10.64601,2888.5,2888.0,1.36484]
[1644796320622,1.73164,2888.4,2888.1,0.01137035]
[1644796320870,1.95376791,2888.3,2888.1,0.01137035]
[1644796321572,1.95376791,2888.3,2888.1,0.86578]
[1644796321772,1.95376791,2888.3,2888.1,1.17715042]